Workbook

Sheet Spørgeskema - Pæd team
B1: ASPERGER- OG AUTISMETEST | C1: Helt enig | D1: Lidt enig | E1: Lidt uenig | F1: Helt uenig | G1: Score | H1: Score | J1: kommunikation | K1: det sociale | L1: forestillingsevne | M1: opmærksomhed
A2: 1 | B2: Jeg foretrækker at gøre ting med andre i stedet for alene. | F2: 1 | H2: =SUM(E2+F2) -> 1 | K2: =(H2) -> 1
A3: 2 | B3: Jeg foretrækker at gøre ting på samme måde igen og igen. | D3: 1 | G3: =SUM(C3+D3) -> 1 | L3: =(G3) -> 1
A4: 3 | B4: Hvis jeg forsøger at forestille mig noget, finder jeg det meget nemt at danne et indre billede | E4: 1 | H4: =SUM(E4+F4) -> 1 | L4: =(H4) -> 1
A5: 4 | B5: Jeg bliver ofte så stærkt optaget af én ting, at jeg taber interessen for andre ting. | C5: 1 | G5: =SUM(C5+D5) -> 1 | M5: =(G5) -> 1
A6: 5 | B6: Jeg bemærker ofte små lyde, når andre ikke gør det | D6: 1 | H6: =SUM(E6+F6) -> 0 | L6: =(H6) -> 0
A7: 6 | B7: Jeg bemærker normalt bil nummerplader eller den slags informationer | D7: 1 | H7: =SUM(E7+F7) -> 0 | M7: =(H7) -> 0
A8: 7 | B8: Andre mennesker fortæller mig ofte, at det jeg sagde er uhøfligt, selvom jeg synes det er høfligt | C8: 1 | H8: =SUM(E8+F8) -> 0 | J8: =(H8) -> 0 | K8: =(H8) -> 0
A9: 8 | B9: Når jeg læser en historie, kan jeg nemt forestille mig, hvordan personerne ser ud | D9: 1 | G9: =SUM(C9+D9) -> 1 | L9: =(G9) -> 1
A10: 9 | B10: Jeg er fascineret af datoer | F10: 1 | H10: =SUM(E10+F10) -> 1 | M10: =(G10) -> 0
A11: 10 | B11: I en social gruppe kan jeg nemt holde øje med flere forskellige menneskers samtaler | D11: 1 | G11: =SUM(C11+D11) -> 1 | K11: =(G11) -> 1
A12: 11 | B12: Jeg finder det nemt at indgå i forskellige sociale forhold | D12: 1 | G12: =SUM(C12+D12) -> 1 | K12: =(G12) -> 1
A13: 12 | B13: Jeg har tendens til at lægge mærke til detaljer, som andre ikke gør. | D13: 1 | H13: =SUM(E13+F13) -> 0 | M13: =H13 -> 0
A14: 13 | B14: Jeg vil hellere gå på et bibliotek end til en fest | E14: 1 | H14: =SUM(E14+F14) -> 1 | K14: =(H14) -> 1
A15: 14 | B15: Jeg finder ud af at lave historier nemt | E15: 1 | G15: =SUM(C15+D15) -> 0 | J15: =(G15) -> 0
A16: 15 | B16: Jeg finder mig selv tiltrukket stærkere til ting end mennesker | E16: 1 | G16: =SUM(C16+D16) -> 0 | K16: =(G16) -> 0
A17: 16 | B17: Jeg har tendens til at have meget stærke interesser, som jeg bliver ked af, hvis jeg ikke kan forfølge | D17: 1 | H17: =SUM(E17+F17) -> 0 | L17: =(H17) -> 0
A18: 17 | B18: Jeg nyder social smalltalk | D18: 1 | G18: =SUM(C18+D18) -> 1 | J18: =(G18) -> 1 | K18: =(G18) -> 1
A19: 18 | B19: Når jeg taler, er det ikke altid let for andre at få et ord i indført. | F19: 1 | H19: =SUM(E19+F19) -> 1 | J19: =(H19) -> 1 | K19: =H19 -> 1
A20: 19 | B20: Jeg er fascineret af tal | F20: 1 | H20: 1 | L20: =(H20) -> 1 | M20: =(H20) -> 1
A21: 20 | B21: Når jeg læser en historie, finder jeg det svært at se personernes intentioner | E21: 1 | H21: 1 | K21: =(H21) -> 1 | L21: =(H21) -> 1
A22: 21 | B22: Jeg kan ikke lide fiktions genren | F22: 1 | H22: 1 | L22: =(H22) -> 1
A23: 22 | B23: Jeg synes det er svært at få nye venner | D23: 1 | H23: 0 | J23: =(H23) -> 0 | K23: =(H23) -> 0
A24: 23 | B24: Jeg ser mønstre i ting hele tiden. | E24: 1 | H24: 1 | L24: =(H24) -> 1 | M24: =(H24) -> 1
A25: 24 | B25: Jeg vil hellere gå i teatret end på et museum. | D25: 1 | G25: =SUM(C25+D25) -> 1 | K25: =(G25) -> 1 | L25: =(G25) -> 1
A26: 25 | B26: Det forstyrrer mig ikke, hvis min daglige rutine er forstyrret. | E26: 1 | G26: =SUM(C26+D26) -> 0 | K26: =(G26) -> 0 | L26: =(G26) -> 0
A27: 26 | B27: Jeg ved ikke, hvordan man holder en samtale i gang | F27: 1 | H27: =SUM(E27+F27) -> 1 | J27: =(H27) -> 1 | K27: =(H27) -> 1
A28: 27 | B28: Jeg finder det nemt at 'læse mellem linjerne', når nogen taler til mig. | E28: 1 | G28: =SUM(C28+D28) -> 0 | J28: =(G28) -> 0 | L28: =(G28) -> 0
A29: 28 | B29: Jeg plejer at koncentrere mig om hele billedet, snarere end på de små detaljer. | E29: 1 | G29: 0 | L29: =(G29) -> 0 | M29: =(G29) -> 0
A30: 29 | B30: Jeg er ikke særlig god til at huske telefonnumre | C30: 1 | G30: 1 | M30: =(G30) -> 1
A31: 30 | B31: Jeg bemærker normalt ikke små ændringer i en situation eller en persons udseende | C31: 1 | G31: 1 | L31: =(G31) -> 1 | M31: =(G31) -> 1
A32: 31 | B32: Jeg ved, om nogen, der lytter til mig, keder sig. | F32: 1 | G32: 0 | J32: =(G32) -> 0 | M32: =(G32) -> 0
A33: 32 | B33: Jeg finder det nemt at gøre mere end én ting på én gang. | F33: 1 | G33: 0 | L33: =(G33) -> 0 | M33: =(G33) -> 0
A34: 33 | B34: Når jeg taler i telefon, er jeg ikke sikker på, hvornår det er min tur til at tale | F34: 1 | H34: =SUM(E34+F34) -> 1 | J34: =(H34) -> 1 | M34: =(H34) -> 1
A35: 34 | B35: Jeg nyder at gøre ting spontant | D35: 1 | G35: =SUM(C35+D35) -> 1 | L35: =(G35) -> 1
A36: 35 | B36: Jeg er ofte den sidste til at forstå en vittighed. | D36: 1 | H36: =SUM(E36+F36) -> 0 | K36: =(H36) -> 0 | L36: =(H36) -> 0
A37: 36 | B37: Jeg finder det nemt at finde ud af, hvad nogen tænker eller føler bare ved at se på deres ansigt | E37: 1 | G37: =SUM(C37+D37) -> 0 | K37: =(G37) -> 0 | M37: =(G37) -> 0
A38: 37 | B38: Hvis der er en afbrydelse, kan jeg nemt gå tilbage til det, jeg lige gjorde | F38: 1 | G38: =SUM(C38+D38) -> 0 | L38: =(G38) -> 0 | M38: =(G38) -> 0
A39: 38 | B39: Jeg er god til at skabe samspil med andre | E39: 1 | G39: =SUM(C39+D39) -> 0 | J39: =(G39) -> 0 | K39: =(G39) -> 0
A40: 39 | B40: Andre fortæller mig ofte, at jeg fortsætter og fortsætter med at sige og gøre det samme. | E40: 1 | H40: =SUM(E40+F40) -> 1 | J40: =(H41) -> 0 | M40: =(H41) -> 0
A41: 40 | B41: Da jeg var ung, plejede jeg at spille spil ved at foregive der var andre børn | F41: 1 | G41: =SUM(C41+D41) -> 0 | L41: =(G41) -> 0
A42: 41 | B42: Jeg kan godt lide at indsamle oplysninger og kategorier af ting (fx typer af biler, fugle, tog, planter). | E42: 1 | H42: =SUM(E42+F42) -> 1 | L42: =(H42) -> 1 | M42: =(H42) -> 1
A43: 42 | B43: Jeg finder det svært at forestille mig, hvordan det ville være at være en anden fx skuespiller. | E43: 1 | H43: =SUM(E43+F43) -> 1 | K43: =(H43) -> 1 | L43: =(H43) -> 1
A44: 43 | B44: Jeg vil gerne omhyggeligt planlægge alle aktiviteter, jeg deltager i. | F44: 1 | H44: =SUM(E44+F44) -> 1 | L44: =(H44) -> 1 | M44: =(H44) -> 1
A45: 44 | B45: Jeg nyder sociale begivenheder | D45: 1 | G45: =SUM(C45+D45) -> 1 | J45: =(G45) -> 1 | K45: =(G45) -> 1
A46: 45 | B46: Jeg finder det svært at finde ud af folks hensigter | D46: 1 | H46: =SUM(E46+F46) -> 0 | J46: =(H46) -> 0 | K46: =(H46) -> 0
A47: 46 | B47: Nye situationer gør mig ivrig og giver energi | D47: 1 | H47: =SUM(E47+F47) -> 0 | K47: =(H47) -> 0 | M47: =(H47) -> 0
A48: 47 | B48: Jeg nyder at møde nye mennesker. | E48: 1 | G48: =SUM(C48+D48) -> 0 | J48: =(G48) -> 0 | K48: =(G48) -> 0
A49: 48 | B49: Jeg er en god diplomat - at finde gode løsninger så alle er tilfredse | F49: 1 | G49: =SUM(C49+D49) -> 0 | J49: =(G49) -> 0 | K49: =(G49) -> 0
A50: 49 | B50: Jeg er ikke særlig god til at huske folks fødselsdage. | E50: 1 | G50: =SUM(C50+D50) -> 0 | L50: =(G50) -> 0 | M50: =(G50) -> 0
A51: 50 | B51: Jeg finder det nemt at spille spil med små børn, hvor man skal "tabe med vilje" | D51: 1 | G51: =SUM(C51+D51) -> 1 | J51: =(G51) -> 1 | K51: =(G51) -> 1
B52: Værdi | C52: 1 | D52: 2 | E52: 3 | F52: 4 | J52: =SUM(J2:J51) -> 6 | K52: =SUM(K2:K51) -> 12 | L52: 13 | M52: 8
B53: I alt | C53: =SUM(C2:C51) -> 4 | D53: 17 | E53: 16 | F53: 13 | G53: 12 | H53: 15
B54: Kommunikation i % | F54: =J56 -> 0.375 | J54: Autisme analyse - Cohens model
B55: Det sociale i % | F55: =K56 -> 0.5217391304 | J55: Kommunikation | K55: Det sociale | L55: Forestillingsevne | M55: Opmærksomhed
B56: Forestillingsevne i % | F56: =L56 -> 0.5652173913 | J56: =((J52)/16*100)% -> 0.375 | K56: =((K52)/23*100)% -> 0.5217391304 | L56: =((L52)/23*100)% -> 0.5652173913 | M56: =((M52)/19*100)% -> 0.4210526316
B57: Opmærksomhed i % | F57: =M56 -> 0.4210526316
B58: Graden af autismespektrumforstyrrelse i % | F58: =L66/100 -> 0.54 | J58: Autisme analyse - Cohens model
B59: Forklaring | J59: Kommunikation | K59: Det sociale | L59: Forestillingsevne | M59: Opmærksomhed
B60: Ikke sandsynligt | F60: 0 - 58% | J60: =J56*100 -> 37.5 | K60: =K56*100 -> 52.17391304 | L60: =L56*100 -> 56.52173913 | M60: =M56*100 -> 42.10526316
B61: Mulighed for autisme | F61: 59-66%
B62: Høj sandsynlighed for autisme | F62: Over 66%
L65: Graden af autismespektrumforstyrrelse
L66: =((G53+H53)*2) -> 54

Sheet Spørgeskema - Klient
B1: ASPERGER- OG AUTISMETEST | C1: Helt enig | D1: Lidt enig | E1: Lidt uenig | F1: Helt uenig | G1: Score | H1: Score | J1: kommunikation | K1: det sociale | L1: forestillingsevne | M1: opmærksomhed
A2: 1 | B2: Jeg foretrækker at gøre ting med andre i stedet for alene. | F2: 1 | H2: =SUM(E2+F2) -> 1 | K2: =(H2) -> 1
A3: 2 | B3: Jeg foretrækker at gøre ting på samme måde igen og igen. | D3: 1 | G3: =SUM(C3+D3) -> 1 | L3: =(G3) -> 1
A4: 3 | B4: Hvis jeg forsøger at forestille mig noget, finder jeg det meget nemt at danne et indre billede | E4: 1 | H4: =SUM(E4+F4) -> 1 | L4: =(H4) -> 1
A5: 4 | B5: Jeg bliver ofte så stærkt optaget af én ting, at jeg taber interessen for andre ting. | F5: 1 | G5: =SUM(C5+D5) -> 0 | M5: =(G5) -> 0
A6: 5 | B6: Jeg bemærker ofte små lyde, når andre ikke gør det | F6: 1 | H6: =SUM(E6+F6) -> 1 | L6: =(H6) -> 1
A7: 6 | B7: Jeg bemærker normalt bil nummerplader eller den slags informationer | D7: 1 | H7: =SUM(E7+F7) -> 0 | M7: =(H7) -> 0
A8: 7 | B8: Andre mennesker fortæller mig ofte, at det jeg sagde er uhøfligt, selvom jeg synes det er høfligt | C8: 1 | H8: =SUM(E8+F8) -> 0 | J8: =(H8) -> 0 | K8: =(H8) -> 0
A9: 8 | B9: Når jeg læser en historie, kan jeg nemt forestille mig, hvordan personerne ser ud | D9: 1 | G9: =SUM(C9+D9) -> 1 | L9: =(G9) -> 1
A10: 9 | B10: Jeg er fascineret af datoer | F10: 1 | H10: =SUM(E10+F10) -> 1 | M10: =(G10) -> 0
A11: 10 | B11: I en social gruppe kan jeg nemt holde øje med flere forskellige menneskers samtaler | D11: 1 | G11: =SUM(C11+D11) -> 1 | K11: =(G11) -> 1
A12: 11 | B12: Jeg finder det nemt at indgå i forskellige sociale forhold | D12: 1 | G12: =SUM(C12+D12) -> 1 | K12: =(G12) -> 1
A13: 12 | B13: Jeg har tendens til at lægge mærke til detaljer, som andre ikke gør. | D13: 1 | H13: =SUM(E13+F13) -> 0 | M13: =H13 -> 0
A14: 13 | B14: Jeg vil hellere gå på et bibliotek end til en fest | E14: 1 | H14: =SUM(E14+F14) -> 1 | K14: =(H14) -> 1
A15: 14 | B15: Jeg finder ud af at lave historier nemt | E15: 1 | G15: =SUM(C15+D15) -> 0 | J15: =(G15) -> 0
A16: 15 | B16: Jeg finder mig selv tiltrukket stærkere til ting end mennesker | E16: 1 | G16: =SUM(C16+D16) -> 0 | K16: =(G16) -> 0
A17: 16 | B17: Jeg har tendens til at have meget stærke interesser, som jeg bliver ked af, hvis jeg ikke kan forfølge | F17: 1 | H17: =SUM(E17+F17) -> 1 | L17: =(H17) -> 1
A18: 17 | B18: Jeg nyder social smalltalk | D18: 1 | G18: =SUM(C18+D18) -> 1 | J18: =(G18) -> 1 | K18: =(G18) -> 1
A19: 18 | B19: Når jeg taler, er det ikke altid let for andre at få et ord i indført. | F19: 1 | H19: =SUM(E19+F19) -> 1 | J19: =(H19) -> 1 | K19: =H19 -> 1
A20: 19 | B20: Jeg er fascineret af tal | F20: 1 | H20: 1 | L20: =(H20) -> 1 | M20: =(H20) -> 1
A21: 20 | B21: Når jeg læser en historie, finder jeg det svært at se personernes intentioner | E21: 1 | H21: 1 | K21: =(H21) -> 1 | L21: =(H21) -> 1
A22: 21 | B22: Jeg kan ikke lide fiktions genren | F22: 1 | H22: 1 | L22: =(H22) -> 1
A23: 22 | B23: Jeg synes det er svært at få nye venner | D23: 1 | H23: 0 | J23: =(H23) -> 0 | K23: =(H23) -> 0
A24: 23 | B24: Jeg ser mønstre i ting hele tiden. | E24: 1 | H24: 1 | L24: =(H24) -> 1 | M24: =(H24) -> 1
A25: 24 | B25: Jeg vil hellere gå i teatret end på et museum. | D25: 1 | G25: =SUM(C25+D25) -> 1 | K25: =(G25) -> 1 | L25: =(G25) -> 1
A26: 25 | B26: Det forstyrrer mig ikke, hvis min daglige rutine er forstyrret. | D26: 1 | G26: =SUM(C26+D26) -> 1 | K26: =(G26) -> 1 | L26: =(G26) -> 1
A27: 26 | B27: Jeg ved ikke, hvordan man holder en samtale i gang | C27: 1 | H27: =SUM(E27+F27) -> 0 | J27: =(H27) -> 0 | K27: =(H27) -> 0
A28: 27 | B28: Jeg finder det nemt at 'læse mellem linjerne', når nogen taler til mig. | D28: 1 | G28: =SUM(C28+D28) -> 1 | J28: =(G28) -> 1 | L28: =(G28) -> 1
A29: 28 | B29: Jeg plejer at koncentrere mig om hele billedet, snarere end på de små detaljer. | D29: 1 | G29: =SUM(C29+D29) -> 1 | L29: =(G29) -> 1 | M29: =(G29) -> 1
A30: 29 | B30: Jeg er ikke særlig god til at huske telefonnumre | C30: 1 | G30: =SUM(C30+D30) -> 1 | M30: =(G30) -> 1
A31: 30 | B31: Jeg bemærker normalt ikke små ændringer i en situation eller en persons udseende | C31: 1 | G31: =SUM(C31+D31) -> 1 | L31: =(G31) -> 1 | M31: =(G31) -> 1
A32: 31 | B32: Jeg ved, om nogen, der lytter til mig, keder sig. | F32: 1 | G32: 1 | J32: =(G32) -> 1 | M32: =(G32) -> 1
A33: 32 | B33: Jeg finder det nemt at gøre mere end én ting på én gang. | F33: 1 | G33: 1 | L33: =(G33) -> 1 | M33: =(G33) -> 1
A34: 33 | B34: Når jeg taler i telefon, er jeg ikke sikker på, hvornår det er min tur til at tale | F34: 1 | H34: =SUM(E34+F34) -> 1 | J34: =(H34) -> 1 | M34: =(H34) -> 1
A35: 34 | B35: Jeg nyder at gøre ting spontant | D35: 1 | G35: =SUM(C35+D35) -> 1 | L35: =(G35) -> 1
A36: 35 | B36: Jeg er ofte den sidste til at forstå en vittighed. | F36: 1 | H36: =SUM(E36+F36) -> 1 | K36: =(H36) -> 1 | L36: =(H36) -> 1
A37: 36 | B37: Jeg finder det nemt at finde ud af, hvad nogen tænker eller føler bare ved at se på deres ansigt | E37: 1 | G37: =SUM(C37+D37) -> 0 | K37: =(G37) -> 0 | M37: =(G37) -> 0
A38: 37 | B38: Hvis der er en afbrydelse, kan jeg nemt gå tilbage til det, jeg lige gjorde | C38: 1 | G38: =SUM(C38+D38) -> 1 | L38: =(G38) -> 1 | M38: =(G38) -> 1
A39: 38 | B39: Jeg er god til at skabe samspil med andre | E39: 1 | G39: =SUM(C39+D39) -> 0 | J39: =(G39) -> 0 | K39: =(G39) -> 0
A40: 39 | B40: Andre fortæller mig ofte, at jeg fortsætter og fortsætter med at sige og gøre det samme. | E40: 1 | H40: =SUM(E40+F40) -> 1 | J40: =(H41) -> 0 | M40: =(H41) -> 0
A41: 40 | B41: Da jeg var ung, plejede jeg at spille spil ved at foregive der var andre børn | D41: 1 | G41: =SUM(C41+D41) -> 1 | L41: =(G41) -> 1
A42: 41 | B42: Jeg kan godt lide at indsamle oplysninger og kategorier af ting (fx typer af biler, fugle, tog, planter). | E42: 1 | H42: =SUM(E42+F42) -> 1 | L42: =(H42) -> 1 | M42: =(H42) -> 1
A43: 42 | B43: Jeg finder det svært at forestille mig, hvordan det ville være at være en anden fx skuespiller. | E43: 1 | H43: =SUM(E43+F43) -> 1 | K43: =(H43) -> 1 | L43: =(H43) -> 1
A44: 43 | B44: Jeg vil gerne omhyggeligt planlægge alle aktiviteter, jeg deltager i. | F44: 1 | H44: =SUM(E44+F44) -> 1 | L44: =(H44) -> 1 | M44: =(H44) -> 1
A45: 44 | B45: Jeg nyder sociale begivenheder | D45: 1 | G45: =SUM(C45+D45) -> 1 | J45: =(G45) -> 1 | K45: =(G45) -> 1
A46: 45 | B46: Jeg finder det svært at finde ud af folks hensigter | D46: 1 | H46: =SUM(E46+F46) -> 0 | J46: =(H46) -> 0 | K46: =(H46) -> 0
A47: 46 | B47: Nye situationer gør mig ivrig og giver energi | D47: 1 | H47: =SUM(E47+F47) -> 0 | K47: =(H47) -> 0 | M47: =(H47) -> 0
A48: 47 | B48: Jeg nyder at møde nye mennesker. | E48: 1 | G48: =SUM(C48+D48) -> 0 | J48: =(G48) -> 0 | K48: =(G48) -> 0
A49: 48 | B49: Jeg er en god diplomat - at finde gode løsninger så alle er tilfredse | F49: 1 | G49: =SUM(C49+D49) -> 0 | J49: =(G49) -> 0 | K49: =(G49) -> 0
A50: 49 | B50: Jeg er ikke særlig god til at huske folks fødselsdage. | D50: 1 | G50: =SUM(C50+D50) -> 1 | L50: =(G50) -> 1 | M50: =(G50) -> 1
A51: 50 | B51: Jeg finder det nemt at spille spil med små børn, hvor man skal "tabe med vilje" | D51: 1 | G51: =SUM(C51+D51) -> 1 | J51: =(G51) -> 1 | K51: =(G51) -> 1
B52: Værdi | C52: 1 | D52: 2 | E52: 3 | F52: 4 | J52: =SUM(J2:J51) -> 7 | K52: =SUM(K2:K51) -> 13 | L52: 23 | M52: 12
B53: I alt | C53: =SUM(C2:C51) -> 5 | D53: 19 | E53: 12 | F53: 14 | G53: 19 | H53: 17
B54: Kommunikation i % | F54: =J56 -> 0.4375 | J54: Autisme analyse - Cohens model
B55: Det sociale i % | F55: =K56 -> 0.5652173913 | J55: Kommunikation | K55: Det sociale | L55: Forestillingsevne | M55: Opmærksomhed
B56: Forestillingsevne i % | F56: =L56 -> 1 | J56: =((J52)/16*100)% -> 0.4375 | K56: =((K52)/23*100)% -> 0.5652173913 | L56: =((L52)/23*100)% -> 1 | M56: =((M52)/19*100)% -> 0.6315789474
B57: Opmærksomhed i % | F57: =M56 -> 0.6315789474
B58: Graden af autismespektrumforstyrrelse i % | F58: =L66/100 -> 0.72 | J58: Autisme analyse - Cohens model
B59: Forklaring | J59: Kommunikation | K59: Det sociale | L59: Forestillingsevne | M59: Opmærksomhed
B60: Ikke sandsynligt | F60: 0 - 58% | J60: =J56*100 -> 43.75 | K60: =K56*100 -> 56.52173913 | L60: =L56*100 -> 100 | M60: =M56*100 -> 63.15789474
B61: Mulighed for autisme | F61: 59-66%
B62: Høj sandsynlighed for autisme | F62: Over 66%
L65: Graden af autismespektrumforstyrrelse
L66: =((G53+H53)*2) -> 72

Sheet Grafisk opgørelse
B3: Pæd team | P3: Klient
